Cogmind - Beta 16 --- EXPLORER MODE // 2025.12.18 @ 10:49:42 Player: K.K.Y. Result: Destroyed by I1-8JQ(R) with Subdweller Beam Cannon Performance ------------- Evolutions (0) 0 Regions Visited (3) 600 Robots Destroyed (27) 135 Value Destroyed (568) 568 Prototype IDs (1) 20 Alien Tech Used (0) 0 Bonus (0) 0 TOTAL SCORE: 1323 Bonus ------- None Cogmind --------- Core Integrity 0/250 Matter 257/300 Energy 280/280 System Corruption 2% Temperature Cool (9) Movement Core (500) Ox9 Location -10/Subcaves Parts ------- > --- POWER (1) -------- Cooled Ion Engine > --- PROPULSION (2) --- (None) > --- UTILITY (3) ------ Large Storage Unit Core Shielding > --- WEAPON (2) ------- (None) > --- INVENTORY (15) --- Makeshift Power Source Improved Heat Sink High-capacity Storage Unit Structural Scanner Experimental Sensor Array Improved Terrain Scanner Medium Armor Plating Makeshift Light Armor Plating Authchip [R/Combat] Authchip [R/Combat] Authchip [R/Combat] Authchip [R/Combat] Authchip [Weapon] Authchip [Weapon] Splice Drone Bay Peak State ------------ > --- POWER ------------ Cooled Ion Engine > --- PROPULSION ------- Light Treads Light Treads > --- UTILITY ---------- Large Storage Unit Core Shielding Medium Armor Plating > --- WEAPON ----------- Beam Rifle Beam Rifle > --- INVENTORY -------- Cooled Ion Engine Improved Heat Sink High-capacity Storage Unit Structural Scanner Experimental Sensor Array Improved Terrain Scanner Medium Armor Plating Authchip [R/Combat] Authchip [R/Combat] Authchip [R/Combat] Authchip [R/Combat] Authchip [Weapon] Authchip [Weapon] Splice Drone Bay Mining Laser [Rating: 18] Favorites ----------- Power Cooled Ion Engine Engine Cooled Ion Engine Propulsion Light Treads Treads Light Treads Utility Core Shielding Device Structural Scanner Storage Large Storage Unit Hackware Makeshift Hacking Suite Protection Core Shielding Weapon Beam Rifle Energy Gun Beam Rifle Ballistic Gun Assault Rifle Special Weapon Mining Laser Build | -11 -10 -10 -10 ------- Run | Yrd Mat Min Sub Slots Evolved 1 | . 1 . . Power . | . . . . Propulsion . | . . . . Utility 1 | . 1 . . Weapon . | . . . . Parts Attached 20 | 6 10 1 3 Power 3 | . 2 . 1 Engine 3 | . 2 . 1 Core . | . . . . Reactor . | . . . . Propulsion 5 | 2 3 . . Treads 5 | 2 3 . . Leg . | . . . . Wheel . | . . . . Hover . | . . . . Flight . | . . . . Utility 6 | 2 3 . 1 Device 1 | 1 . . . Storage 2 | 1 1 . . Processor . | . . . . Hackware 1 | . . . 1 Protection 2 | . 2 . . Artifact . | . . . . Weapon 6 | 2 2 1 1 Energy Gun 3 | . 2 1 . Energy Cannon . | . . . . Ballistic Gun 2 | 2 . . . Ballistic Cannon . | . . . . Launcher . | . . . . Special Weapon 1 | . . . 1 Impact Weapon . | . . . . Slashing Weapon . | . . . . Piercing Weapon . | . . . . Special Melee Weapon . | . . . . Unidentified Prototypes 1 | . 1 . . Parts Lost 10 | . 2 . 8 Power 2 | . 1 . 1 Propulsion 2 | . . . 2 Utility 2 | . . . 2 Weapon 4 | . 1 . 3 Highest Loss Streak 3 | . 1 . 3 To Critical Strikes . | . . . . Average Backups 12 | . 8 15 14 Power . | . . 1 . Propulsion . | . . . . Utility 11 | . 7 12 13 Weapon . | . . 1 . Tool/Special . | . . . . Unused Backups 19 | 1 3 1 14 Power 2 | . 1 . 1 Propulsion . | . . . . Utility 16 | 1 2 . 13 Weapon 1 | . . 1 . Tool/Special . | . . . . Average Slot Usage (%) 85 | . 84 100 77 Engine 10 | . 7 12 11 Treads 16 | . 24 25 6 Device 2 | . 10 . . Storage 12 | . 12 12 12 Hackware 3 | . . . 7 Protection 17 | . 12 25 14 Energy Gun 15 | . 4 25 16 Ballistic Gun 3 | . 12 . . Special Weapon 2 | . . . 6 Peak Build Rating 18 | 6 17 18 18 Average Rating 14 | 4 9 17 16 On Entrance 10 | . 6 17 18 Avg Prop Armor Cover (%) . | . . . . Naked Turns . | . . . . Heaviest Build 42 | 15 42 42 42 Greatest Support 40 | 40 40 40 40 Greatest Overweight (x) 11 | . 4 1 11 Average Overweight (x) 2 | . . 1 5 Largest Inventory Capacity 15 | 10 15 15 15 Average Capacity 14 | 8 12 15 15 Most Carried 15 | 5 15 15 15 Average Carried 12 | . 8 15 14 Final Capacity 15 | 10 15 15 15 Final Carried 15 | 2 15 15 15 Class Distribution -------------------- 100% | Hacker-Mutant Dominant Class ---------------- Hacker-Mutant | -10/Materials Hacker-Mutant | -10/Mines Hacker-Mutant | -10/Subcaves Resources | -11 -10 -10 -10 ----------- Run | Yrd Mat Min Sub Matter Collected 775 | 308 343 83 41 Remotely . | . . . . Salvage Created 769 | 104 295 45 325 Parts 46 | 7 21 3 15 Haulers Intercepted 1 | . 1 . . Recyclers Shooed 1 | 1 . . . Parts Field Recycled . | . . . . Retrieved Matter . | . . . . Parts Self-Destructed . | . . . . Prevented . | . . . . Parts Restored . | . . . . Kills | -11 -10 -10 -10 ------- Run | Yrd Mat Min Sub Combat Hostiles Destroyed 17 | . 6 2 9 Guns 17 | . 6 2 9 Classes Destroyed 9 | 2 5 . 2 Worker 2 | . 1 1 . Builder 1 | . 1 . . Tunneler 3 | 3 . . . Hauler 1 | . 1 . . Recycler 1 | 1 . . . Turret 2 | . . . 2 Swarmer 7 | . 2 2 3 Grunt 4 | . 4 . . Subdweller 6 | . . . 6 Best Kill Streak 5 | 3 2 2 5 Combat Bots Only 3 | . 2 2 3 Max Kills in Single Turn 1 | 1 1 1 1 Gunslinging . | . . . . Exploded . | . . . . Melee . | . . . . Uniques/NPCs Destroyed . | . . . . Combat | -11 -10 -10 -10 -------- Run | Yrd Mat Min Sub Hostile Shots Fired 261 | . 67 8 186 Missed 99 | . 19 2 78 Hits 162 | . 48 6 108 Projectile 162 | . 48 6 108 AOE 11 | . . . 11 Critical Strikes 2 | . 2 . . Actively Blocked 1 | . 1 . . Damage Taken 1495 | . 396 27 1072 Core 259 | . 43 8 208 Absorbed by Shields . | . . . . Redirected to Shielding 46 | . 8 1 37 Ignored by Resistances 933 | . 250 21 662 Core Remaining (%) 100 | 100 . . . Volleys Fired 112 | 9 43 4 56 Largest 2 | 2 2 2 2 Hottest 112 | 40 112 112 112 Shots Fired 195 | 18 73 9 95 Gun 184 | 18 73 9 84 Cannon . | . . . . Launcher . | . . . . Special 11 | . . . 11 Kinetic 89 | 18 71 . . Thermal 106 | . 2 9 95 Explosive . | . . . . Electromagnetic . | . . . . Robot Hit Streak 32 | 11 22 10 32 Robot Miss Streak 2 | 1 2 1 2 Penetration Max . | . . . . Secondary Targets 3 | . . . 3 Max Gunslinging Chain 1 | . . . 1 Shots Hit Robots 157 | 16 62 6 73 Core Hits 46 | 5 17 3 21 Critical Kills 1 | . 1 . . Critical Parts Destroyed 1 | . 1 . . Critical Strikes 7 | . 2 2 3 Burn 5 | . . 2 3 Destroy 2 | . 2 . . Melee Attacks . | . . . . Impact . | . . . . Slashing . | . . . . Piercing . | . . . . Sneak Attacks . | . . . . Combat Hostiles . | . . . . Follow-up Attacks . | . . . . Damage Inflicted 1940 | 199 771 87 883 Guns 1940 | 199 771 87 883 Cannons . | . . . . Explosions . | . . . . Melee . | . . . . Ramming . | . . . . Kinetic 941 | 199 742 . . Thermal 999 | . 29 87 883 Explosive . | . . . . Electromagnetic . | . . . . Impact . | . . . . Slashing . | . . . . Piercing . | . . . . Highest Corruption 2 | . 2 2 2 Average Corruption 1 | . 1 2 2 Corruption Purged . | . . . . Corruption Blocked . | . . . . Effects 65 | . 6 20 39 Message Errors 22 | . 3 7 12 Matter Fused 16 | . . 6 10 Heat Flow Errors 10 | . 1 1 8 Energy Discharges 8 | . 1 3 4 Data Loss (minor) 3 | . . 1 2 Misfires 5 | . 1 1 3 Alerts 1 | . . 1 . Overload Shots . | . . . . Overflow Damage . | . . . . Projectiles . | . . . . Explosions . | . . . . Melee . | . . . . Knockbacks . | . . . . Impact . | . . . . Kinetic . | . . . . Secondary . | . . . . Self-Inflicted Damage . | . . . . Shots . | . . . . Rammed . | . . . . Targets Rammed . | . . . . Kicked . | . . . . Crushed . | . . . . Highest Temperature 238 | . 145 216 238 Average Temperature 50 | . 21 91 47 Received Heat Transfer 792 | . 315 . 477 Siege Activations . | . . . . Martial Activations . | . . . . Shielding Activations . | . . . . Robots Disrupted . | . . . . Combat Hostiles . | . . . . Robots Corrupted . | . . . . Combat Hostiles . | . . . . Parts Fried . | . . . . Impact Corruptions . | . . . . Robots Melted . | . . . . Combat Hostiles . | . . . . Parts Melted 7 | . 2 1 4 Heat Transferred 2923 | . 74 370 2479 Parts Sabotaged . | . . . . Parts Stolen . | . . . . Parts Stripped . | . . . . Power Chain Reactions . | . . . . Alert | -11 -10 -10 -10 ------- Run | Yrd Mat Min Sub Maximum Alert Level . | . . . . Low Security (%) 100 | 100 100 100 . Level 1 . | . . . . Level 2 . | . . . . Level 3 . | . . . . Level 4 . | . . . . Level 5 . | . . . . High Security . | . . . . Max Security . | . . . . Peak Influence 50 | 15 50 35 . Initial . | . . . . Average 2 | 1 3 . . Influence Increases 402 | 20 167 55 160 Destroy 0b10 Robot/C 260 | . 120 40 100 Destroy 0b10 Robot/NC 40 | 20 15 5 . Destroy Leader 42 | . 32 10 . Lose Combat Pursuer 60 | . . . 60 Influence Decreases 402 | 20 167 55 160 Time Decay 372 | 20 167 55 130 Lost Part 30 | . . . 30 Squads Dispatched . | . . . . Investigation . | . . . . Extermination . | . . . . Reinforcement . | . . . . Assault . | . . . . Garrison . | . . . . Intercept . | . . . . Searches Triggered . | . . . . Construction Impeded . | . . . . Haulers Reinforced . | . . . . Active Scanning Responses . | . . . . Cargo Convoy Interrupts . | . . . . Stealth | -11 -10 -10 -10 --------- Run | Yrd Mat Min Sub Distress Signals 1 | . 1 . . Communications Jammed . | . . . . Distress Signals . | . . . . Times Spotted 30 | . 11 2 17 Peak Tracking Total 6 | . 4 2 6 Tactical Retreats 2 | . . . 2 Traps | -11 -10 -10 -10 ------- Run | Yrd Mat Min Sub Traps Triggered 10 | . 9 . 1 Indirectly . | . . . . Trap Hack Attempts . | . . . . Triggered . | . . . . Disarmed . | . . . . Reprogrammed . | . . . . Reused . | . . . . Traps Extracted . | . . . . Installed . | . . . . Triggered . | . . . . Machines | -11 -10 -10 -10 ---------- Run | Yrd Mat Min Sub Machines Disabled . | . . . . Max in Single Turn . | . . . . Machines Repaired . | . . . . Machines Dismantled . | . . . . Machines Sabotaged . | . . . . Overloaded Fab Kills . | . . . . Hacking | -11 -10 -10 -10 --------- Run | Yrd Mat Min Sub Machines Accessed 1 | . . 1 . Terminals . | . . . . Fabricators . | . . . . Repair Stations . | . . . . Recycling Units . | . . . . Scanalyzers . | . . . . Garrison Access . | . . . . Total Hacks 1 | . . 1 . Successful 1 | . . 1 . Failed . | . . . . Catastrophic . | . . . . Database Lockouts . | . . . . Manual . | . . . . Terminals . | . . . . Fabricators . | . . . . Repair Stations . | . . . . Recycling Units . | . . . . Scanalyzers . | . . . . Garrison Access . | . . . . Terminal Hacks 1 | . . 1 . Open Door 1 | . . 1 . Fabricator Hacks . | . . . . Repair Station Hacks . | . . . . Recycling Unit Hacks . | . . . . Scanalyzer . | . . . . Garrison Access Hacks . | . . . . Unauthorized Hacks . | . . . . Terminals . | . . . . Fabricators . | . . . . Repair Stations . | . . . . Recycling Units . | . . . . Scanalyzers . | . . . . Garrison Access . | . . . . Data Cores Recovered . | . . . . Used . | . . . . Hacking Detections . | . . . . Full Trace Events . | . . . . Feedback Events . | . . . . Feedback Blocked . | . . . . Robot Schematics Acquired . | . . . . Robots Built . | . . . . Authchips . | . . . . Time . | . . . . Total Robot Build Rating . | . . . . Part Schematics Acquired . | . . . . Parts Built . | . . . . Authchips . | . . . . Time . | . . . . Total Part Build Rating . | . . . . Part Studies Acquired . | . . . . Parts Repaired . | . . . . Time . | . . . . Parts Recycled . | . . . . Recycled Matter . | . . . . Retrieved Matter . | . . . . Retrieved Components . | . . . . Parts Scanalyzed . | . . . . Part Schematics Acquired . | . . . . Parts Damaged . | . . . . Bothacking | -11 -10 -10 -10 ------------ Run | Yrd Mat Min Sub Used RIF Installer . | . . . . Robots Hacked . | . . . . Non-combat . | . . . . Combat . | . . . . Robot Hacks Applied . | . . . . Relay Couplers Released . | . . . . Fabnet Peak Effective % . | . . . . Robots Rewired . | . . . . Allies Hacked . | . . . . Hacks Repelled . | . . . . Allies | -11 -10 -10 -10 -------- Run | Yrd Mat Min Sub Total Allies . | . . . . Largest Group . | . . . . Highest-Rated Group . | . . . . Highest-Rated Ally . | . . . . Total Orders . | . . . . Ally Attacks . | . . . . Total Damage . | . . . . Kills . | . . . . Allies Corrupted . | . . . . Allies Melted . | . . . . Intel | -11 -10 -10 -10 ------- Run | Yrd Mat Min Sub Active Infowar (turns) 1070 | 82 988 . . Structural 1070 | 82 988 . . Robot Analysis Total . | . . . . Derelict Logs Recovered . | . . . . Drone Launches . | . . . . Drone Recoveries . | . . . . Exploration | -11 -10 -10 -10 ------------- Run | Yrd Mat Min Sub Turns Passed 4827 | 104 1186 1328 2209 Spaces Moved 1673 | 54 588 546 485 Core 292 | 21 6 . 265 Treads 1381 | 33 582 546 220 Legs . | . . . . Wheels . | . . . . Hover . | . . . . Flight . | . . . . Fastest Speed 50 | 50 160 240 160 Average Speed 259 | 117 170 240 406 Slowest Speed 600 | 160 250 240 600 Overloaded Moves . | . . . . Propulsion Burnouts . | . . . . Robots Hopped . | . . . . Potential Cave-ins . | . . . . Cave-ins Triggered . | . . . . Exploration Rate (%) 58 | 4 99 99 32 Regions Visited 3 Branch Regions 2 Pre-discovered Areas 1 | . . . 1 Known Exits Taken 3 | 1 1 1 . Unknown Exits Taken . | . . . . Scrap Searched 1 | . . 1 . Spaces Dug . | . . . . Terrain Destroyed . | . . . . Melee . | . . . . Projectile . | . . . . AOE . | . . . . Terrain Rammed . | . . . . Walls Destroyed . | . . . . Machines Disabled . | . . . . Actions | -11 -10 -10 -10 --------- Run | Yrd Mat Min Sub Total 1948 | 76 705 557 610 Wait 84 | . 17 3 64 Move 1670 | 53 587 545 485 Hop . | . . . . Pick Up 42 | 7 31 2 2 Fast Attach 4 | 2 1 . 1 Attach 17 | 4 11 . 2 Detach 1 | . 1 . . Swap 5 | . 4 1 . Drop 13 | 1 10 2 . Fire 112 | 9 43 4 56 Melee . | . . . . Ram . | . . . . Kick . | . . . . Crush . | . . . . Escape Stasis . | . . . . Rewire . | . . . . Trap . | . . . . Miscellaneous . | . . . . Route ------- -11/Scrapyard -10/Materials (discovered 4 exits: *Mat x3 / *Min) -10/Mines (discovered 4 exits: *Mat x2 / *Exi / *Sub) -10/Subcaves (discovered 3 exits: *Mat x2 / *Rec) History --------- Turn | Location | Event 3 | -11/Scrapyard | Identified exit to Materials 3 | -11/Scrapyard | Discovered exit to Materials (range 16) 105 | -11/Scrapyard | Entered Materials 105 | -10/Materials | Evolved 1 slot: Utility x1 318 | -10/Materials | Build established: Hacker-Mutant 446 | -10/Materials | Identified exit to Materials 446 | -10/Materials | Discovered exit to Materials (range 16) 646 | -10/Materials | Discovered exit to Materials (range 10) 933 | -10/Materials | Identified exit to Mines 933 | -10/Materials | Discovered exit to Mines (range 7) 1079 | -10/Materials | Discovered exit to Materials (range 15) 1291 | -10/Materials | Entered Mines 1305 | -10/Mines | Received a Rocket Launcher from a helpful Derelict 1612 | -10/Mines | Found the Drone Emporium 1623 | -10/Mines | Found Prototype Device 1663 | -10/Mines | Deemed a non-threat by the Exiles lab entrance 1663 | -10/Mines | Identified exit to Exiles 1663 | -10/Mines | Discovered exit to Exiles (range 5) 1701 | -10/Mines | Discovered exit to Materials (range 7) 1867 | -10/Mines | Found a damaged Exp. Sensor Array with a note attached 1873 | -10/Mines | Found Prototype Device 2038 | -10/Mines | Discovered exit to Materials (range 15) 2425 | -10/Mines | Identified exit to Subcaves 2425 | -10/Mines | Discovered exit to Subcaves (range 6) 2619 | -10/Mines | Entered Subcaves 2620 | -10/Subcaves | Approached by a straggling Scientist 2740 | -10/Subcaves | Shifting Twisted Machinery released Sub. Monowheel 3099 | -10/Subcaves | Ambushed by Subdweller buried in earth 3122 | -10/Subcaves | Identified exit to Materials 3122 | -10/Subcaves | Discovered exit to Materials (range 15) 3167 | -10/Subcaves | Learned location of Zion (-7) 3167 | -10/Subcaves | Met a Zionite searching for "candidates" 3195 | -10/Subcaves | Core integrity fell below 50% 3244 | -10/Subcaves | Lost 3 parts (1p2n) 3267 | -10/Subcaves | Identified exit to Recycling 3267 | -10/Subcaves | Discovered exit to Recycling (range 15) 3798 | -10/Subcaves | Discovered exit to Materials (range 7) 3799 | -10/Subcaves | Shifting Twisted Machinery released Mak. Light Armor Plating 3826 | -10/Subcaves | Shifting Twisted Machinery released Sub. Power Source 4797 | -10/Subcaves | Core integrity fell below 20% 4828 | -10/Subcaves | Destroyed by I1-8JQ(R) with Subdweller Beam Cannon Last Messages --------------- 04348_ System corrupted: Component data lost. 04349_ 99-FNH(u) tweaks Twisted Machinery. 04401_ WOYGYO0W<2UB=JLY5USF%FGMG Q#,OCCVUBTN=LJ 04405_ 99-FNH(u) tweaks Twisted Machinery. 04418_ System corrupted: Matter fused (-7). 04443_ 99-FNH(u) builds Twisted Machinery. 04448_ System corrupted: Energy discharge (-100). 04448_ 99-FNH(u) builds Twisted Machinery. 04464_ 99-FNH(u) tweaks Twisted Machinery. 04504_ System corrupted: Matter fused (-8). 04607_ System corrupted: FCS attempts to trigger Beam Rifle. 04607_ System corrupted: Beam Rifle misfires. 04687_ System corrupted: Heat flow error (+106). 04727_ System corrupted: Heat flow error (+253). 04780_ Mining Laser destroyed. 04782_ Beam Rifle destroyed. 04803_ System corrupted: Energy discharge (-61). 04805_ Mak. Hacking Suite destroyed. Map ----- +----------------------------------------------------+ | ?????????????????????????????????????????????????? | | ??????????????????????????????????????????????#### | | ??????????????????????????????????????????????# " | | ??????????????????????????????????????????????#""" | | ???????????????????????????????????????????????#"" | | ????????????????????????????????????????????????#" | | ????????????????????????????????????????????????#" | | ????????????????????????????????????????????????# | | ????????????????????????????????????????????????# | | ????????????????????????????????????????????????# | | ????????????????????????????????????????????????# | | ????????????????????????????????????????????????## | | ?????????????????????????????????????????????????? | | ?????????????????????????????????????????????????? | | ????????????????????????????????????????????????## | | ????????????????????????????????????????????????# | | ?????????????#?????????????????????????????????#"" | | ????????????? ????????????????????????????????## | | ????????????# ???????????????????????????????## | | ????????????#% ??#????????????????????????????? | | ????????????# ## ???????????????????????????? | | ????????????# ??####????????????????????? | | ????????????# % ### ###??????????????????? | | ????????????# R R ##?????????????????? | | ????????????# % ##????????????????? | | ????????????# @ #????????????????? | | ??????????????# ## ##????????????????? | | ??????????????# #?## ##?????????????????? | | ??????????????# #??## ##?????????????????? | | ??????????????# ???# ####??????????????? | | ??????????????# ????# ##?????????????? | | ??????????????# ?????# ##????????????? | | ?????????????# ?????## #????????????? | | ?????????????## ??????# ############## | | ??????????????### ??????# # # | | ????????????????##? #### | | ?????????????????# """ #??# | | ????????????????# """" # ## | | ?????????????????" """"" " ####### | | ?????????????????"""" " # """ ### ####?????? | | ???????????????????? """"#""" ??# #????????? | | ??????????????????????"###?"" ##?### ????????? | | ???????????????????????????#" ###????## ???????? | | ???????????????????????????"""????????## #??????? | | ????????????????????????????????????????###??????? | | ?????????????????????????????????????????????????? | | ?????????????????????????????????????????????????? | | ?????????????????????????????????????????????????? | | ?????????????????????????????????????????????????? | | ????????????????????????????????????????????###### | +----------------------------------------------------+ Best States ------------- Heat Dissipation 25 Energy Generation 14 Energy Capacity 280 Matter Stores 300 Matter Capacity 300 Sight Range 16 Terrain Scan Density 10 Armor Coverage 225 Resistance: KI 35 Resistance: TH 35 Resistance: EX 35 Resistance: EM 35 Resistance: I 35 Resistance: S 35 Resistance: P 35 Core Shielding 20 Evasion (%) 50 Recoil Reduction 2 Offensive Hacking 31 Authchip Count 6 Item Schematics ----------------- None Robot Schematics ------------------ None Fabricated ------------ Nothing Repaired ---------- Nothing Studied --------- None Alien Tech Used ----------------- None Achievements -------------- None Challenges ------------ None Game ------ Seed TractorGuidanceRedirector Manual? 0 Play Time 00:14:09 Cumulative 206.5 hours Start 2025.12.18 @ 10:31:17 End 2025.12.18 @ 10:49:42 Sessions 1 Manual Loads 0 Difficulty Explorer Special Mode None Game No. 314 Rogue 0 Adventurer 0 Explorer 314 Win Type - Total 0 Types 0/0/0/0/0/0/0/0/0/0 Lore% 71 Gallery% 68 Achievement% 53 Wizard Run 0 Options --------- Layout 1 ASCII 0 Keyboard 0 Movement Mouse Keybinds 0 Fullscreen 1 Font 24/Smallcaps Map View 50x35 Zoom Use 0% Tactical HUD 1 Map Filters NONE Filters NONE Steam 1 RUN: e64219d2-f93c-4d4b-90ce-abc9c5f47a05